fUST/lending_fUST_20250604
["ID","MTS","AMOUNT","RATE_DAILY","PERIOD"]
[364040441,1748974239462,-430.0,0.00016438,2]
[364040443,1748974239472,-426.67060066,0.00016438,2]
[364040447,1748974239481,-440.0,0.00016438,2]
[364040450,1748974239491,-440.0,0.00016438,2]
[364040453,1748974239501,-430.0,0.00016438,2]
[364040456,1748974239514,-440.0,0.00016438,2]
[364040459,1748974239523,-430.0,0.00016438,2]
[364040463,1748974239534,-326.95460916,0.00016438,2]
[364040465,1748974239544,-430.0,0.00016438,2]
[364040469,1748974239558,-440.0,0.00016438,2]
[364040472,1748974239568,-440.0,0.00016438,2]
[364040475,1748974239578,-440.0,0.00016438,2]
[364040479,1748974239588,-430.0,0.00016438,2]
[364040482,1748974239598,-430.0,0.00016438,2]
[364040485,1748974239608,-386.90446027,0.00016438,2]
[364040488,1748974239618,-440.0,0.00016438,2]
[364040489,1748974239631,-440.0,0.00016438,2]
[364040491,1748974239640,-561.44090945,0.00016438,2]
[364040493,1748974239650,-440.0,0.00016438,2]
[364040496,1748974239660,-179.70878645,0.00016438,2]
[364040498,1748974239671,-430.0,0.00016438,2]
[364040499,1748974239680,-440.0,0.00016438,2]
[364040502,1748974239691,-440.0,0.00016438,2]
[364040504,1748974239702,-440.0,0.00016438,2]
[364040506,1748974239712,-216.6070701,0.00016438,2]
[364040508,1748974239721,-440.0,0.00016438,2]
[364040510,1748974239731,-223.29750905,0.00016438,2]
[364040512,1748974239741,-440.0,0.00016438,2]
[364040514,1748974239751,-430.0,0.00016438,2]
[364040516,1748974239762,-365.7702797,0.00016438,2]
[364040518,1748974239772,-190.36,0.00016438,2]
[364040520,1748974239782,-532.53,0.00016438,2]
[364040522,1748974239792,-430.0,0.00016438,2]
[364040524,1748974239801,-180.0,0.00016438,2]
[364040526,1748974239811,-430.0,0.00016438,2]
[364040528,1748974239821,-440.0,0.00016438,2]
[364040530,1748974239831,-440.0,0.00016438,2]
[364040532,1748974239840,-430.0,0.00016438,2]
[364040534,1748974239850,-440.0,0.00016438,2]
[364040536,1748974239860,-440.0,0.00016438,2]
[364040538,1748974239869,-430.0,0.00016438,2]
[364040540,1748974239879,-464.28194219,0.00016438,2]
[364040542,1748974239889,-440.0,0.00016438,2]
[364040544,1748974239899,-430.0,0.00016438,2]
[364040546,1748974239909,-430.0,0.00016438,2]
[364040548,1748974239919,-430.0,0.00016438,2]
[364040550,1748974239929,-430.0,0.00016438,2]
[364040552,1748974239939,-440.0,0.00016438,2]
[364040554,1748974239948,-440.0,0.00016438,2]
[364040556,1748974239958,-440.0,0.00016438,2]
[364040558,1748974239968,-440.0,0.00016438,2]
[364040560,1748974239977,-220.07509405,0.00016438,2]
[364040562,1748974239987,-440.0,0.00016438,2]
[364040564,1748974239996,-555.62,0.00016438,2]
[364040566,1748974240007,-430.0,0.00016438,2]
[364040568,1748974240017,-440.0,0.00016438,2]
[364040570,1748974240027,-430.0,0.00016438,2]
[364040572,1748974240037,-430.0,0.00016438,2]
[364040574,1748974240047,-430.0,0.00016438,2]
[364040576,1748974240057,-430.0,0.00016438,2]
[364040578,1748974240067,-430.0,0.00016438,2]
[364040581,1748974240077,-440.0,0.00016438,2]
[364040583,1748974240087,-440.0,0.00016438,2]
[364040585,1748974240097,-430.0,0.00016438,2]
[364040587,1748974240106,-440.0,0.00016438,2]
[364040588,1748974240116,-440.0,0.00016438,2]
[364040591,1748974240126,-440.0,0.00016438,2]
[364040593,1748974240136,-430.0,0.00016438,2]
[364040595,1748974240146,-430.0,0.00016438,2]
[364040598,1748974240157,-430.0,0.00016438,2]
[364040601,1748974240166,-440.0,0.00016438,2]
[364040604,1748974240176,-430.0,0.00016438,2]
[364040607,1748974240186,-440.0,0.00016438,2]
[364040610,1748974240196,-269.88839009,0.00016438,2]
[364040613,1748974240206,-440.0,0.00016438,2]
[364040615,1748974240215,-430.0,0.00016438,2]
[364040617,1748974240225,-430.0,0.00016438,2]
[364040619,1748974240234,-529.06473254,0.00016438,2]
[364040621,1748974240244,-430.0,0.00016438,2]
[364040623,1748974240254,-430.0,0.00016438,2]
[364040625,1748974240264,-440.0,0.00016438,2]
[364040627,1748974240274,-440.0,0.00016438,2]
[364040629,1748974240283,-440.0,0.00016438,2]
[364040631,1748974240293,-430.0,0.00016438,2]
[364040633,1748974240303,-440.0,0.00016438,2]
[364040635,1748974240313,-440.0,0.00016438,2]
[364040637,1748974240323,-430.0,0.00016438,2]
[364040639,1748974240333,-440.0,0.00016438,2]
[364040641,1748974240344,-440.0,0.00016438,2]
[364040643,1748974240353,-430.0,0.00016438,2]
[364040645,1748974240363,-456.81972831,0.00016438,2]
[364040647,1748974240372,-440.0,0.00016438,2]
[364040649,1748974240382,-430.0,0.00016438,2]
[364040651,1748974240392,-440.0,0.00016438,2]
[364040653,1748974240402,-440.0,0.00016438,2]
[364040655,1748974240411,-440.0,0.00016438,2]
[364040657,1748974240421,-430.0,0.00016438,2]
[364040659,1748974240431,-430.0,0.00016438,2]
[364040661,1748974240440,-430.0,0.00016438,2]
[364040663,1748974240450,-430.0,0.00016438,2]
[364040665,1748974240459,-507.42104227,0.00016438,2]
[364040667,1748974240469,-440.0,0.00016438,2]
[364040669,1748974240479,-440.0,0.00016438,2]
[364040671,1748974240489,-430.0,0.00016438,2]
[364040673,1748974240499,-296.61647403,0.00016438,2]
[364040675,1748974240510,-440.0,0.00016438,2]
[364040677,1748974240519,-430.0,0.00016438,2]
[364040679,1748974240529,-430.0,0.00016438,2]
[364040681,1748974240539,-430.0,0.00016438,2]
[364040683,1748974240548,-430.0,0.00016438,2]
[364040685,1748974240558,-430.0,0.00016438,2]
[364040687,1748974240567,-440.0,0.00016438,2]
[364040689,1748974240576,-440.0,0.00016438,2]
[364040691,1748974240585,-430.0,0.00016438,2]
[364040693,1748974240595,-440.0,0.00016438,2]
[364040695,1748974240604,-440.0,0.00016438,2]
[364040697,1748974240614,-440.0,0.00016438,2]
[364040699,1748974240626,-430.0,0.00016438,2]
[364040701,1748974240636,-443.55693185,0.00016438,2]
[364040703,1748974240645,-430.0,0.00016438,2]
[364040705,1748974240655,-440.0,0.00016438,2]
[364040706,1748974240666,-430.0,0.00016438,2]
[364040708,1748974240675,-440.0,0.00016438,2]
[364040710,1748974240685,-327.61351071,0.00016438,2]
[364040712,1748974240695,-430.0,0.00016438,2]
[364040714,1748974240705,-440.0,0.00016438,2]
[364040716,1748974240716,-440.0,0.00016438,2]
[364040718,1748974240726,-430.0,0.00016438,2]
[364040720,1748974240736,-440.0,0.00016438,2]
[364040722,1748974240747,-440.0,0.00016438,2]
[364040724,1748974240757,-440.0,0.00016438,2]
[364040726,1748974240767,-430.0,0.00016438,2]
[364040728,1748974240777,-454.5612957,0.00016438,2]
[364040730,1748974240787,-440.0,0.00016438,2]
[364040732,1748974240797,-414.00149886,0.00016438,2]
[364040734,1748974240807,-430.0,0.00016438,2]
[364040736,1748974240817,-440.0,0.00016438,2]
[364040738,1748974240828,-440.0,0.00016438,2]
[364040740,1748974240847,-430.0,0.00016438,2]
[364040742,1748974240857,-251.47734856,0.00016438,2]
[364040744,1748974240866,-430.0,0.00016438,2]
[364040746,1748974240876,-360.0,0.00016438,2]
[364040748,1748974240886,-501.8360678,0.00016473,2]
[364040750,1748974240895,-497.08659995,0.00016473,2]
[364040752,1748974240904,-364.5107659,0.000166,2]
[364040754,1748974240914,-364.5107659,0.000166,2]
[364040756,1748974240924,-500.0,0.00016683,2]
[364040758,1748974240933,-217.1484714,0.000167,2]
[364040760,1748974240943,-153.0,0.000167,2]
[364040762,1748974240953,-306.0,0.000167,2]
[364040764,1748974240962,-729.0215318,0.000167,2]
[364040766,1748974240971,-153.0,0.000167,2]
[364040768,1748974240980,-153.0,0.000167,2]
[364040770,1748974240990,-153.0,0.000167,2]
[364040772,1748974240999,-440.0,0.00016712,2]
[364040774,1748974241009,-302.23399977,0.00016712,2]
[364040776,1748974241018,-440.0,0.00016712,2]
[364040778,1748974241028,-430.89750212,0.00016712,2]
[364040780,1748974241038,-420.0,0.00016712,2]
[364040782,1748974241047,-440.0,0.00016712,2]
[364040784,1748974241056,-440.0,0.00016712,2]
[364040786,1748974241066,-420.0,0.00016712,2]
[364040788,1748974241075,-420.0,0.00016712,2]
[364040790,1748974241085,-440.0,0.00016712,2]
[364040792,1748974241093,-440.0,0.00016712,2]
[364040794,1748974241103,-152.12,0.00016712,2]
[364040796,1748974241112,-440.0,0.00016712,2]
[364040798,1748974241122,-440.0,0.00016712,2]
[364040800,1748974241134,-440.0,0.00016712,2]
[364040802,1748974241143,-183.19,0.00016712,2]
[364040804,1748974241153,-420.0,0.00016712,2]
[364040806,1748974241162,-440.0,0.00016712,2]
[364040808,1748974241172,-350.0,0.00016712,2]
[364040810,1748974241182,-440.0,0.00016712,2]
[364040812,1748974241191,-420.0,0.00016712,2]
[364040814,1748974241200,-542.38,0.00016712,2]
[364040816,1748974241210,-562.69911654,0.00016712,2]
[364040818,1748974241219,-440.0,0.00016712,2]
[364040820,1748974241228,-440.0,0.00016712,2]
[364040822,1748974241238,-440.0,0.00016712,2]
[364040824,1748974241247,-440.0,0.00016712,2]
[364040826,1748974241258,-440.0,0.00016712,2]
[364040827,1748974241267,-420.0,0.00016712,2]
[364040828,1748974241276,-397.39603436,0.00016712,2]
[364040829,1748974241285,-422.63538322,0.00016712,2]
[364040830,1748974241294,-430.0,0.00016712,2]
[364040831,1748974241303,-430.0,0.00016712,2]
[364040832,1748974241312,-430.0,0.00016712,2]
[364040833,1748974241322,-440.0,0.00016712,2]
[364040834,1748974241331,-420.0,0.00016712,2]
[364040835,1748974241340,-440.0,0.00016712,2]
[364040836,1748974241349,-440.0,0.00016712,2]
[364040837,1748974241358,-430.0,0.00016712,2]
[364040838,1748974241367,-430.0,0.00016712,2]
[364040839,1748974241376,-478.58,0.00016712,2]
[364040840,1748974241385,-488.73,0.00016712,2]
[364040841,1748974241395,-440.0,0.00016712,2]
[364040842,1748974241405,-440.0,0.00016712,2]
[364040843,1748974241414,-440.0,0.00016712,2]
[364040844,1748974241424,-440.0,0.00016712,2]
[364040845,1748974241435,-441.43957263,0.00016712,2]
[364040846,1748974241446,-440.0,0.00016712,2]
[364040847,1748974241456,-440.0,0.00016712,2]
[364040848,1748974241466,-430.0,0.00016712,2]
[364040849,1748974241475,-440.0,0.00016712,2]
[364040850,1748974241485,-440.0,0.00016712,2]
[364040851,1748974241495,-440.0,0.00016712,2]
[364040853,1748974241504,-440.0,0.00016712,2]
[364040855,1748974241516,-440.0,0.00016712,2]
[364040857,1748974241526,-440.0,0.00016712,2]
[364040859,1748974241536,-440.0,0.00016712,2]
[364040861,1748974241546,-440.0,0.00016712,2]
[364040863,1748974241555,-440.0,0.00016712,2]
[364040865,1748974241564,-440.0,0.00016712,2]
[364040866,1748974241573,-420.0,0.00016712,2]
[364040868,1748974241583,-440.0,0.00016712,2]
[364040870,1748974241592,-440.0,0.00016712,2]
[364040872,1748974241602,-440.0,0.00016712,2]
[364040874,1748974241611,-440.0,0.00016712,2]
[364040876,1748974241626,-440.0,0.00016712,2]
[364040878,1748974241636,-420.0,0.00016712,2]
[364040880,1748974241646,-465.36,0.00016712,2]
[364040882,1748974241656,-440.0,0.00016712,2]
[364040884,1748974241666,-440.0,0.00016712,2]
[364040886,1748974241676,-440.0,0.00016712,2]
[364040888,1748974241685,-420.0,0.00016712,2]
[364040890,1748974241695,-394.15739841,0.00016712,2]
[364040892,1748974241706,-440.0,0.00016712,2]
[364040894,1748974241716,-405.52,0.00016712,2]
[364040897,1748974241725,-440.0,0.00016712,2]
[364040898,1748974241735,-440.0,0.00016712,2]
[364040901,1748974241745,-420.0,0.00016712,2]
[364040903,1748974241754,-440.0,0.00016712,2]
[364040905,1748974241766,-500.0,0.00016857,2]
[364040907,1748974241775,-440.0,0.00016871,2]
[364040909,1748974241785,-440.0,0.00016871,2]
[364040911,1748974241794,-440.0,0.00016871,2]
[364040913,1748974241804,-275.52841144,0.00016986,2]
[364040915,1748974241813,-440.0,0.00016986,2]
[364040917,1748974241823,-410.0,0.00016986,2]
[364040918,1748974241832,-410.0,0.00016986,2]
[364040921,1748974241842,-440.0,0.00016986,2]
[364040923,1748974241852,-484.45,0.00016986,2]
[364040925,1748974241861,-478.14,0.00016986,2]
[364040938,1748974241970,-467.42742233,0.00016986,2]
[364040940,1748974241991,-440.0,0.00016986,2]
[364040942,1748974242001,-410.0,0.00016986,2]
[364040944,1748974242013,-410.0,0.00016986,2]
[364040946,1748974242022,-440.0,0.00016986,2]
[364040948,1748974242031,-410.0,0.00016986,2]
[364040950,1748974242040,-440.0,0.00016986,2]
[364040952,1748974242051,-430.0,0.00016986,2]
[364040954,1748974242060,-440.0,0.00016986,2]
[364040956,1748974242069,-440.0,0.00016986,2]
[364040958,1748974242078,-440.0,0.00016986,2]
[364040960,1748974242088,-440.0,0.00016986,2]
[364040962,1748974242097,-314.86,0.00016986,2]
[364040964,1748974242106,-440.0,0.00016986,2]
[364040966,1748974242116,-440.0,0.00016986,2]
[364040968,1748974242125,-420.0,0.00016986,2]
[364040970,1748974242134,-440.0,0.00016986,2]
[364040972,1748974242144,-330.93154517,0.00016986,2]
[364040974,1748974242154,-440.0,0.00016986,2]
[364040977,1748974242166,-440.0,0.00016986,2]
[364040979,1748974242175,-440.0,0.00016986,2]
[364040981,1748974242185,-440.0,0.00016986,2]
[364040983,1748974242194,-440.0,0.00016986,2]
[364040985,1748974242203,-440.0,0.00016986,2]
[364040987,1748974242214,-420.0,0.00016986,2]
[364040988,1748974242224,-440.0,0.00016986,2]
[364040990,1748974242234,-430.0,0.00016986,2]
[364040992,1748974242244,-440.0,0.00016986,2]
[364040994,1748974242254,-440.0,0.00016986,2]
[364040996,1748974242264,-440.0,0.00016986,2]
[364040998,1748974242273,-440.0,0.00016986,2]
[364041000,1748974242283,-440.0,0.00016986,2]
[364041002,1748974242292,-440.0,0.00016986,2]
[364041004,1748974242301,-440.0,0.00016986,2]
[364041007,1748974242312,-430.0,0.00016986,2]
[364041009,1748974242324,-440.0,0.00016986,2]
[364041011,1748974242334,-440.0,0.00016986,2]
[364041013,1748974242343,-440.0,0.00016986,2]
[364041015,1748974242352,-730.91229534,0.00017045,2]
[364041017,1748974242361,-440.0,0.00017145,2]
[364041019,1748974242370,-440.0,0.00017145,2]
[364041022,1748974242381,-440.0,0.00017145,2]
[364041024,1748974242390,-430.0,0.0001726,2]
[364041026,1748974242399,-440.0,0.0001726,2]
[364041028,1748974242409,-400.0,0.0001726,2]
[364041030,1748974242418,-440.0,0.0001726,2]
[364041032,1748974242427,-420.0,0.0001726,2]
[364041035,1748974242437,-440.0,0.0001726,2]
[364041039,1748974242447,-440.0,0.0001726,2]
[364041041,1748974242456,-290.15122475,0.0001726,2]
[364041043,1748974242466,-253.84,0.0001726,2]
[364041045,1748974242476,-440.0,0.0001726,2]
[364041047,1748974242486,-581.74,0.0001726,2]
[364041049,1748974242495,-440.0,0.0001726,2]
[364041052,1748974242506,-440.0,0.0001726,2]
[364041054,1748974242518,-451.99,0.0001726,2]
[364041056,1748974242527,-440.0,0.0001726,2]
[364041058,1748974242537,-365.16,0.0001726,2]
[364041060,1748974242546,-440.0,0.0001726,2]
[364041061,1748974242556,-440.0,0.0001726,2]
[364041064,1748974242566,-440.0,0.0001726,2]
[364041065,1748974242575,-440.0,0.0001726,2]
[364041068,1748974242585,-420.0,0.0001726,2]
[364041070,1748974242594,-440.0,0.0001726,2]
[364041072,1748974242603,-440.0,0.0001726,2]
[364041074,1748974242613,-440.0,0.0001726,2]
[364041076,1748974242625,-440.0,0.0001726,2]
[364041078,1748974242634,-440.0,0.0001726,2]
[364041080,1748974242644,-185.18,0.0001726,2]
[364041081,1748974242653,-440.0,0.0001726,2]
[364041084,1748974242665,-440.0,0.0001726,2]
[364041086,1748974242675,-192.25222457,0.00017419,2]
[364041088,1748974242684,-440.0,0.00017419,2]
[364041090,1748974242694,-440.0,0.00017419,2]
[364041092,1748974242705,-440.0,0.00017534,2]
[364041093,1748974242715,-440.0,0.00017534,2]
[364041096,1748974242726,-440.0,0.00017534,2]
[364041098,1748974242735,-440.0,0.00017534,2]
[364041100,1748974242744,-379.30605409,0.00017534,2]
[364041102,1748974242754,-440.0,0.00017534,2]
[364041104,1748974242764,-440.0,0.00017534,2]
[364041106,1748974242774,-581.93,0.00017534,2]
[364041108,1748974242783,-440.0,0.00017534,2]
[364041110,1748974242793,-440.0,0.00017534,2]
[364041112,1748974242802,-440.0,0.00017534,2]
[364041114,1748974242811,-440.0,0.00017534,2]
[364041116,1748974242821,-440.0,0.00017534,2]
[364041118,1748974242831,-182.7,0.00017534,2]
[364041120,1748974242841,-371.96,0.00017534,2]
[364041121,1748974242850,-440.0,0.00017534,2]
[364041123,1748974242860,-316.06,0.00017534,2]
[364041126,1748974242871,-406.74,0.00017534,2]
[364041128,1748974242881,-309.56,0.00017534,2]
[364041130,1748974242891,-592.315358,0.00017644,2]
[364041132,1748974242900,-414.95620097,0.00017693,2]
[364041134,1748974242909,-440.0,0.00017693,2]
[364041136,1748974242919,-327.91722645,0.00017808,2]
[364041138,1748974242928,-440.0,0.00017808,2]
[364041140,1748974242937,-440.0,0.00017808,2]
[364041142,1748974242947,-440.0,0.00017808,2]
[364041143,1748974242958,-440.0,0.00017808,2]
[364041145,1748974242967,-319.32506764,0.00017808,2]
[364041146,1748974242977,-261.16,0.00017808,2]
[364041148,1748974242986,-440.0,0.00017808,2]
[364041150,1748974242996,-440.0,0.00017808,2]
[364041151,1748974243006,-440.0,0.00017808,2]
[364041153,1748974243016,-440.0,0.00017808,2]
[364041154,1748974243025,-440.0,0.00017808,2]
[364041156,1748974243035,-326.38736533,0.000179,2]
[364041157,1748974243044,-420.0,0.00017954,2]
[364041159,1748974243054,-2344.78766306,0.00017954,2]
[364041160,1748974243063,-440.0,0.00017967,2]
[364041162,1748974243072,-331.23305942,0.00018082,2]
[364041163,1748974243082,-204.58243388,0.00018082,2]
[364041165,1748974243091,-296.03765098,0.00018082,2]
[364041166,1748974243100,-440.0,0.00018082,2]
[364041168,1748974243109,-312.56,0.00018082,2]
[364041169,1748974243119,-396.16,0.00018082,2]
[364041171,1748974243128,-376.91973813,0.00018082,2]
[364041172,1748974243137,-269.2,0.00018082,2]
[364041174,1748974243146,-440.0,0.00018082,2]
[364041175,1748974243156,-326.38736529,0.00018141,2]
[364041177,1748974243166,-440.0,0.00018356,2]
[364041179,1748974243175,-440.0,0.00018356,2]
[364041180,1748974243185,-326.38736529,0.00018383,2]
[364041182,1748974243195,-326.38736529,0.00018624,2]
[364041183,1748974243204,-260.16,0.0001863,2]
[364041185,1748974243213,-440.0,0.0001863,2]
[364041187,1748974243224,-160.0,0.00018708,2]
[364041188,1748974243233,-229.42821335,0.00018708,2]
[364041190,1748974243243,-160.0,0.00018708,2]
[364041192,1748974243253,-423.63107087,0.00018708,2]
[364041193,1748974243263,-730.91229531,0.00018734,2]
[364041195,1748974243274,-326.38736529,0.00018866,2]
[364041197,1748974243283,-395.97077613,0.000189,2]
[364041198,1748974243293,-440.0,0.00018904,2]
[364041200,1748974243302,-326.38736529,0.00019107,2]
[364041201,1748974243311,-500.0,0.00019178,2]
[364041203,1748974243321,-500.0,0.00019178,2]
[364041204,1748974243330,-614.60342916,0.00019178,2]
[364041206,1748974243339,-500.0,0.00019178,2]
[364041207,1748974243348,-500.0,0.00019178,2]
[364041209,1748974243358,-500.0,0.00019178,2]
[364041210,1748974243368,-500.0,0.00019178,2]
[364041212,1748974243377,-500.0,0.00019178,2]
[364041214,1748974243386,-500.0,0.00019178,2]
[364041215,1748974243395,-500.0,0.00019178,2]
[364041217,1748974243405,-500.0,0.00019178,2]
[364041218,1748974243414,-500.0,0.00019178,2]
[364041220,1748974243424,-500.0,0.00019178,2]
[364041221,1748974243433,-500.0,0.00019178,2]
[364041223,1748974243442,-500.0,0.00019178,2]
[364041225,1748974243452,-500.0,0.00019178,2]
[364041226,1748974243463,-500.0,0.00019178,2]
[364041228,1748974243472,-500.0,0.00019178,2]
[364041230,1748974243482,-500.0,0.00019178,2]
[364041231,1748974243492,-500.0,0.00019178,2]
[364041233,1748974243502,-500.0,0.00019178,2]
[364041234,1748974243513,-300.0,0.00019178,2]
[364041236,1748974243524,-525.93497633,0.00019178,2]
[364041237,1748974243533,-326.38736529,0.00019348,2]
[364041239,1748974243543,-326.38736529,0.0001959,2]
[364041241,1748974243553,-587.0,0.00019621,2]
[364041242,1748974243564,-326.38736529,0.00019831,2]
[364041244,1748974243574,-182.041,0.00019928,2]
[364041245,1748974243583,-326.38736529,0.00020072,2]
[364041247,1748974243593,-317.493612,0.00020187,2]
[364041249,1748974243602,-326.38736529,0.00020314,3]
[364041250,1748974243611,-730.91229531,0.00020423,2]
[364041252,1748974243622,-500.0,0.00020547,2]
[364041253,1748974243633,-326.38736529,0.00020555,3]
[364041255,1748974243643,-1396.59,0.000206,2]
[364041257,1748974243653,-2968.39,0.000206,2]
[364041258,1748974243663,-326.38736529,0.00020797,4]
[364041260,1748974243674,-742.531784,0.00021,2]
[364041262,1748974243683,-326.38736529,0.00021038,4]
[364041263,1748974243694,-500.0,0.00021095,3]
[364041265,1748974243705,-326.38736529,0.00021279,5]
[364041266,1748974243715,-424.0,0.00021443,2]
[364041268,1748974243726,-326.38736529,0.00021521,5]
[364041270,1748974243736,-207.4,0.00021641,2]
[364041271,1748974243745,-500.0,0.00021643,4]
[364041273,1748974243754,-1336.54,0.000217,2]
[364041274,1748974243767,-326.38736529,0.00021762,5]
[364041276,1748974243776,-405.0,0.00021799,2]
[364041278,1748974243786,-6035.69810402,0.000219,2]
[364041279,1748974243796,-152536.67,0.00022,7]
[364041281,1748974243806,-1396.59,0.00022,7]
[364041282,1748974243816,-171.0,0.00022,2]
[364041284,1748974243826,-2968.39,0.00022,7]
[364041286,1748974243836,-326.38736529,0.00022003,6]
[364041287,1748974243846,-196.698,0.00022032,2]
[364041289,1748974243856,-150.79,0.00022032,2]
[364041290,1748974243865,-156.305,0.00022032,2]
[364041292,1748974243876,-962.0,0.00022032,2]
[364041294,1748974243885,-709.0,0.00022032,2]
[364041295,1748974243895,-2225.0,0.00022032,2]
[364041297,1748974243904,-730.91229531,0.00022111,2]
[364041298,1748974243913,-412.3999775,0.00022191,5]
[364041300,1748974243923,-326.38736529,0.00022245,6]
[364041301,1748974243932,-326.38736529,0.00022486,7]
[364041303,1748974243941,-218.0,0.00022493,3]
[364041305,1748974243952,-154.7610475,0.00022575,2]
[364041306,1748974243961,-153.0,0.00022575,2]
[364041308,1748974243972,-326.38736529,0.00022728,7]
[364041309,1748974243982,-159.79694846,0.00022877,2]
[364041311,1748974243992,-326.38736529,0.00022969,8]
[364041313,1748974244002,-6035.69810401,0.00022973,2]
[364041314,1748974244013,-188.0,0.00023,7]
[364041316,1748974244022,-215.0738,0.0002301,2]
[364041317,1748974244032,-159.79694846,0.00023178,2]
[364041319,1748974244042,-728.7564356,0.00023205,2]
[364041321,1748974244052,-326.38736529,0.0002321,8]
[364041322,1748974244061,-151.0,0.000233,7]
[364041324,1748974244070,-153.0,0.00023342,2]
[364041325,1748974244080,-153.0,0.00023342,2]
[364041327,1748974244089,-153.0,0.00023342,2]
[364041329,1748974244099,-326.38736529,0.00023452,9]
[364041330,1748974244109,-159.79694846,0.00023479,2]
[364041332,1748974244118,-2968.39,0.000236,7]
[364041334,1748974244128,-326.38736529,0.00023693,9]
[364041335,1748974244137,-1396.59,0.000237,7]
[364041337,1748974244147,-1824.26,0.0002379,10]
[364041339,1748974244156,-1520.22,0.0002379,10]
[364041340,1748974244166,-1266.85,0.0002379,10]
[364041342,1748974244175,-1055.71,0.0002379,10]
[364041343,1748974244184,-1000.0,0.00023799,3]
[364041345,1748974244194,-1000.0,0.00023799,5]
[364041347,1748974244203,-1000.0,0.00023799,10]
[364041348,1748974244213,-500.0,0.00023799,2]
[364041350,1748974244222,-500.0,0.00023799,2]
[364041352,1748974244231,-500.0,0.00023799,2]
[364041353,1748974244241,-553.095455,0.00023799,2]
[364041355,1748974244251,-500.0,0.00023799,2]
[364041357,1748974244262,-500.0,0.00023799,2]
[364041358,1748974244272,-500.0,0.00023799,2]
[364041360,1748974244281,-500.0,0.00023799,2]
[364041362,1748974244290,-426089.95232538,0.000238,2]
[364041363,1748974244299,-151.0,0.000238,7]
[364041365,1748974244309,-25164.89,0.000238,2]
[364041367,1748974244318,-250.0,0.000238,30]
[364041368,1748974244328,-730.91229531,0.000238,2]
[364041370,1748974244339,-31109.29649339,0.0002386,7]
[364041377,1748974244431,-402.09594334,0.0002386,7]
[364041379,1748974244443,-5348.59681349,0.0002386,7]
[364041383,1748974244497,-187.93290952,0.00017438,2]
[364041385,1748974244507,-9481.15123848,0.0002386,7]
[364041387,1748974244519,-683.20353383,0.0002386,7]
[364041389,1748974244531,-54166.28763735,0.0002386,7]
[364041463,1748974245895,-22339.53734012,0.0002386,7]
[364041465,1748974245905,-291.99147321,0.00023888,7]
[364041470,1748974245949,-429.55852679,0.00023888,7]
[364041472,1748974245959,-552.04,0.000239,14]
[364041474,1748974245970,-292.8,0.000239,2]
[364041476,1748974245979,-7904.31452072,0.000239,7]
[364041493,1748974246375,-0.01537012,0.000239,7]